[Event "Turkish Club Cup 2019"]
[Site "Konya"]
[Date "2019.07.17"]
[Round "2"]
[White "Temel, Burcu Melis"]
[Black "Kilic, Gulseren"]
[Result "1-0"]
[ECO "A05"]
[WhiteElo "1790"]
[BlackElo "1422"]
[Annotator "NA"]
[PlyCount "53"]
[EventDate "2019.07.16"]
[EventType "team-tourn"]
[EventCountry "TUR"]
[SourceTitle "playchess.com"]
[Source "ChessBase"]
[SourceQuality "1"]
[TimeControl "5400+30"]

1. e4 {[%emt 0:00:30]} c5 {[%emt 0:00:30]} 2. Nf3 {[%emt 0:00:30]} g6 {[%emt 0:00:00]} 3. d3 {[%emt 0:01:30]} Bg7 {[%emt 0:01:00]} 4. g3 {[%emt 0:00:30]} Nc6 {[%emt 0:00:30]} 5. Bg2 {[%emt 0:00:30]} Nf6 {[%emt 0:00:30]} 6. O-O {[%emt 0:00:00]} O-O {[%emt 0:00:00]} 7. Re1 {[%emt 0:01:00]} Re8 {[%emt 0:01:00]} 8. e5 {[%emt 0:11:30]} Ng4 {[%emt 0:13:30]} 9. Bf4 {[%emt 0:00:30]} f6 {[%emt 0:01:30]} 10. exf6 {[%emt 0:02:30]} Nxf6 {[%emt 0:05:30]} 11. Nc3 {[%emt 0:01:30]} a6 {[%emt 0:01:30]} 12. Qd2 {[%emt 0:06:30]} d5 {[%emt 0:01:30]} 13. Na4 {[%emt 0:07:30]} Nd7 {[%emt 0:03:30]} 14. Ng5 {[%emt 0:01:30]} Nf8 {[%emt 0:11:30]} 15. Nc3 {[%emt 0:13:30]} e6 {[%emt 0:04:30]} 16. Nxd5 {[%emt 0:06:30]} exd5 {[%emt 0:06:30]} 17. Rxe8 {[%emt 0:01:30]} Qxe8 {[%emt 0:02:30]} 18. Bxd5+ {[%emt 0:00:00]} Be6 {[%emt 0:11:30]} 19. Nxe6 {[%emt 0:00:00]} Nxe6 {[%emt 0:00:30]} 20. Re1 {[%emt 0:00:30]} Ncd8 {[%emt 0:02:30]} 21. Qe2 {[%emt 0:00:00]} Kf7 {[%emt 0:00:30]} 22. Bc7 {[%emt 0:01:00]} Qd7 {[%emt 0:01:30]} 23. Qf3+ {[%emt 0:00:30]} Ke8 {[%emt 0:04:30]} 24. Bxd8 {[%emt 0:00:30]} Kxd8 {[%emt 0:02:30]} 25. Rxe6 {[%emt 0:01:30]} Rc8 {[%emt 0:05:31]} 26. Qf4 {[%emt 0:07:30]} Bh6 {[%emt 0:06:53]} 27. Qf6+ {[%emt 0:00:30]} 1-0

[Event "Turkish Club Cup 2019"]
[Site "Konya"]
[Date "2019.07.17"]
[Round "2"]
[White "Dogan, Osman Fatih"]
[Black "Kul, Ozdemir Efe"]
[Result "1/2-1/2"]
[ECO "B23"]
[WhiteElo "1787"]
[BlackElo "1974"]
[Annotator "NA"]
[PlyCount "102"]
[EventDate "2019.07.16"]
[EventType "team-tourn"]
[EventCountry "TUR"]
[SourceTitle "playchess.com"]
[Source "ChessBase"]
[SourceQuality "1"]
[TimeControl "5400+30"]

1. e4 {[%emt 0:00:30]} c5 {[%emt 0:00:30]} 2. Nc3 {[%emt 0:00:00]} Nc6 {[%emt 0:00:30]} 3. Bb5 {[%emt 0:00:00]} e5 {[%emt 0:00:30]} 4. d3 {[%emt 0:00:30]} (4. Nge2 Bd6 5. a3 Nge7 6. Bc4 a6 7. O-O b5 8. Ba2 O-O 9. d3 Nd4 10. f4 Nxe2+ 11. Qxe2 exf4 {1-0 (39) Asis Gargatagli,H (2529)-Fluvia Poyatos,J (2493) Barcelona 2018}) 4... Nge7 {[%emt 0:00:30]} 5. f4 {[%emt 0:02:30]} d6 {[%emt 0:03:30]} 6. Nf3 {[%emt 0:08:30] B23: Closed Sicilian: Lines without g3} a6 {[%emt 0:06:30]} 7. Bxc6+ $146 {[%emt 0:02:30]} ({Predecessor:} 7. Ba4 b5 8. Bb3 Qb6 9. Bd2 Ng6 10. Nd5 Qa7 11. c3 Be7 {1-0 (53) Marney,J (1620)-Cook,J (1656) Wellington 2012}) 7... Nxc6 {[%emt 0:00:30]} 8. O-O {[%emt 0:00:30]} h6 {[%emt 0:01:30]} 9. Nd5 {[%emt 0:00:30]} exf4 {[%emt 0:18:30]} 10. Bxf4 {[%emt 0:00:30]} g5 {[%emt 0:00:30]} 11. Bg3 {[%emt 0:06:30]} Bg7 {[%emt 0:00:00]} 12. Nd2 {[%emt 0:01:30]} b5 {[%emt 0:04:00]} 13. a4 {[%emt 0:24:30]} Rb8 {[%emt 0:02:30]} 14. axb5 {[%emt 0:00:30]} axb5 {[%emt 0:03:30]} 15. c4 {[%emt 0:04:30]} O-O {[%emt 0:07:30]} 16. cxb5 {[%emt 0:00:30]} Ne5 {[%emt 0:01:30]} 17. Qb3 {[%emt 0:02:30]} Bd7 {[%emt 0:07:30]} 18. Nc3 {[%emt 0:03:30]} Nxd3 {[%emt 0:04:30]} 19. Qd5 {[%emt 0:08:30]} Nxb2 {[%emt 0:05:30]} 20. Qb3 {[%emt 0:05:30]} Nd3 {[%emt 0:00:30]} 21. Ra6 {[%emt 0:03:30]} Be6 $11 {[%emt 0:03:30]} (21... c4 $5 22. Qxc4 Rc8 23. Qxd3 Rxc3 $15) 22. Nd5 {[%emt 0:00:30]} Ne5 {[%emt 0:00:30]} 23. Nc4 {[%emt 0:00:30]} Bxd5 {[%emt 0:01:30]} 24. exd5 {[%emt 0:00:00]} Nxc4 {[%emt 0:00:30]} 25. Qxc4 {[%emt 0:00:00]} Rb6 {[%emt 0:00:30]} 26. Re1 {[%emt 0:03:30]} Qc7 {[%emt 0:03:30]} 27. h3 {[%emt 0:02:23]} Rfb8 {[%emt 0:00:30]} 28. Qa4 {[%emt 0:03:01]} Qd7 {[%emt 0:02:30]} 29. Kh1 {[%emt 0:03:29]} Bf8 {[%emt 0:01:30]} 30. Rxb6 {[%emt 0:01:02]} Rxb6 {[%emt 0:00:00]} 31. Qa8 {[%emt 0:01:04]} Qb7 {[%emt 0:00:00]} 32. Qd8 {[%emt 0:00:30]} Qb8 {[%emt 0:00:30]} 33. Qd7 {[%emt 0:00:30]} Rb7 {[%emt 0:00:30]} 34. Qc6 {[%emt 0:04:50]} Rb6 {[%emt 0:16:00]} 35. Re8 {[%emt 0:00:30]} Qa7 {[%emt 0:01:07]} 36. Bxd6 {[%emt 0:06:56]} Rxc6 {[%emt 0:00:59]} 37. dxc6 {[%emt 0:00:06]} Qa1+ {[%emt 0:02:27]} 38. Kh2 {[%emt 0:00:08]} Qf6 {[%emt 0:00:35]} 39. Bg3 {[%emt 0:00:54]} h5 {[%emt 0:00:34]} 40. c7 {[%emt 0:00:11]} Kh7 {[%emt 0:01:04]} 41. c8=Q {[%emt 0:00:38]} h4 {[%emt 0:01:13]} 42. Be5 {[%emt 0:00:10]} Bd6 {[%emt 0:00:11]} 43. Rh8+ {[%emt 0:01:47]} Kg6 {[%emt 0:00:33]} 44. Rg8+ {[%emt 0:01:11]} Kh7 {[%emt 0:00:25]} 45. Rh8+ {[%emt 0:01:00]} Kg6 {[%emt 0:00:13]} 46. Qg8+ {[%emt 0:00:00]} Kf5 {[%emt 0:00:05]} 47. Bxd6 {[%emt 0:00:01]} Qxd6+ {[%emt 0:00:07]} 48. Kg1 {[%emt 0:01:03]} Qd1+ {[%emt 0:00:13]} 49. Kh2 {[%emt 0:00:36]} Qd6+ {[%emt 0:00:05]} 50. Kg1 {[%emt 0:00:38]} Qd1+ {[%emt 0:00:05]} 51. Kf2 {[%emt 0:00:35]} Qd2+ {[%emt 0:00:06]} 1/2-1/2

[Event "Turkish Club Cup 2019"]
[Site "Konya"]
[Date "2019.07.17"]
[Round "2"]
[White "Erdogan, Tekin Alp"]
[Black "Metin, Enis"]
[Result "0-1"]
[ECO "B52"]
[WhiteElo "1777"]
[BlackElo "1538"]
[Annotator "NA"]
[PlyCount "140"]
[EventDate "2019.07.16"]
[EventType "team-tourn"]
[EventCountry "TUR"]
[SourceTitle "playchess.com"]
[Source "ChessBase"]
[SourceQuality "1"]
[TimeControl "5400+30"]

1. e4 {[%emt 0:00:30]} c5 {[%emt 0:00:30]} 2. Nf3 {[%emt 0:00:30]} d6 {[%emt 0:00:30]} 3. Bb5+ {[%emt 0:00:30]} Bd7 {[%emt 0:00:30]} 4. Bxd7+ {[%emt 0:00:30]} Qxd7 {[%emt 0:00:30]} 5. c4 {[%emt 0:00:30]} Nc6 {[%emt 0:00:00]} 6. O-O {[%emt 0:00:00]} Nf6 {[%emt 0:00:00]} 7. Nc3 {[%emt 0:00:00]} g6 {[%emt 0:00:00]} 8. d4 {[%emt 0:00:30]} cxd4 {[%emt 0:00:00]} 9. Nxd4 {[%emt 0:00:30]} Bg7 {[%emt 0:00:30]} 10. Nc2 {[%emt 0:01:30]} O-O {[%emt 0:00:30]} 11. f3 {[%emt 0:01:30]} Rfc8 {[%emt 0:05:30]} 12. Ne3 {[%emt 0:01:30]} a6 {[%emt 0:03:30]} 13. Bd2 {[%emt 0:09:30]} Ne5 {[%emt 0:11:30]} 14. Qe2 {[%emt 0:01:30]} e6 {[%emt 0:04:30]} 15. Rfd1 {[%emt 0:03:30]} Qc6 {[%emt 0:02:30]} 16. b3 {[%emt 0:04:30]} Qe8 {[%emt 0:34:30]} 17. Be1 {[%emt 0:05:30]} Qe7 {[%emt 0:00:30]} 18. Rac1 {[%emt 0:00:30]} Nh5 {[%emt 0:02:30]} 19. g3 {[%emt 0:04:30]} Qg5 {[%emt 0:05:30]} 20. Ng2 {[%emt 0:04:30]} Nc6 {[%emt 0:02:30]} 21. Bf2 {[%emt 0:00:30]} Qa5 {[%emt 0:01:30]} 22. Na4 {[%emt 0:03:30]} b5 {[%emt 0:01:30]} 23. Nb6 {[%emt 0:02:30]} Nd4 {[%emt 0:00:30]} 24. Rxd4 {[%emt 0:01:30]} Qxb6 {[%emt 0:00:00]} 25. Rd2 {[%emt 0:00:00]} Qc7 {[%emt 0:01:00]} 26. Rdc2 {[%emt 0:05:00]} b4 {[%emt 0:01:30]} 27. Rd2 {[%emt 0:00:30]} Bc3 {[%emt 0:00:30]} 28. Rd3 {[%emt 0:00:30]} Nf6 {[%emt 0:00:30]} 29. Rcd1 {[%emt 0:00:30]} Rd8 {[%emt 0:01:30]} 30. Be3 {[%emt 0:02:30]} a5 {[%emt 0:00:30]} 31. Qf2 {[%emt 0:01:30]} Ra6 {[%emt 0:00:00]} 32. Bf4 {[%emt 0:02:30]} Nh5 {[%emt 0:00:00]} 33. Bg5 {[%emt 0:01:30]} Rc8 {[%emt 0:00:30]} 34. Nf4 {[%emt 0:02:30]} Nxf4 {[%emt 0:00:30]} 35. Bxf4 {[%emt 0:00:30]} e5 {[%emt 0:00:30]} 36. Be3 {[%emt 0:00:30]} a4 {[%emt 0:00:30]} 37. Kh1 {[%emt 0:04:30]} axb3 {[%emt 0:00:30]} 38. axb3 {[%emt 0:00:30]} Rca8 {[%emt 0:00:30]} 39. Bc1 {[%emt 0:03:30]} Ra2 {[%emt 0:00:30]} 40. Qg1 {[%emt 0:01:30]} Rc2 {[%emt 0:00:00]} 41. Be3 {[%emt 0:13:02]} Raa2 {[%emt 0:00:00]} 42. g4 {[%emt 0:04:59]} Qe7 {[%emt 0:01:30]} 43. Qg3 {[%emt 0:00:52]} Rxh2+ {[%emt 0:03:57]} 44. Qxh2 {[%emt 0:00:30]} Rxh2+ {[%emt 0:00:30]} 45. Kxh2 {[%emt 0:00:30]} Qh4+ {[%emt 0:00:00]} 46. Kg2 {[%emt 0:00:00]} Be1 {[%emt 0:00:00]} 47. Bg1 {[%emt 0:02:55]} Qg3+ {[%emt 0:00:00]} 48. Kf1 {[%emt 0:00:59]} Bc3 {[%emt 0:00:52]} 49. Bf2 {[%emt 0:01:18]} Qh3+ {[%emt 0:01:40]} 50. Ke2 {[%emt 0:02:15]} Qh2 {[%emt 0:00:48]} 51. Rxd6 {[%emt 0:01:17]} Bd4 {[%emt 0:00:30]} 52. Rf1 {[%emt 0:00:30]} Qg2 {[%emt 0:00:00]} 53. Rd5 {[%emt 0:00:38]} g5 {[%emt 0:02:14]} 54. Rd8+ {[%emt 0:06:49]} Kg7 {[%emt 0:00:30]} 55. Rxd4 {[%emt 0:00:30]} exd4 {[%emt 0:00:30]} 56. Rd1 {[%emt 0:00:00]} h5 {[%emt 0:01:35]} 57. Rg1 {[%emt 0:01:58]} Qh2 {[%emt 0:00:30]} 58. gxh5 {[%emt 0:00:04]} d3+ {[%emt 0:04:45]} 59. Ke3 {[%emt 0:00:19]} Qf4+ {[%emt 0:00:48]} 60. Kxd3 {[%emt 0:00:04]} Qxf3+ {[%emt 0:00:32]} 61. Be3 {[%emt 0:00:14]} f6 {[%emt 0:00:00]} 62. c5 {[%emt 0:00:26]} Qxh5 {[%emt 0:00:15]} 63. c6 {[%emt 0:01:41]} Qf7 {[%emt 0:01:44]} 64. Rc1 {[%emt 0:00:29]} Qc7 {[%emt 0:02:33]} 65. Bb6 {[%emt 0:00:15]} Qxb6 {[%emt 0:00:14]} 66. c7 {[%emt 0:00:30]} Qd6+ {[%emt 0:00:35]} 67. Ke2 {[%emt 0:00:22]} Qa6+ {[%emt 0:00:10]} 68. Kf3 {[%emt 0:00:19]} Qd3+ {[%emt 0:00:13]} 69. Kg4 {[%emt 0:00:17]} Qxe4+ {[%emt 0:00:30]} 70. Kg3 {[%emt 0:00:30]} Qe3+ {[%emt 0:00:00]} 0-1

[Event "Turkish Club Cup 2019"]
[Site "Konya"]
[Date "2019.07.17"]
[Round "2"]
[White "Celik, Musa"]
[Black "Banci, Dogancan"]
[Result "0-1"]
[ECO "B51"]
[WhiteElo "1773"]
[BlackElo "1643"]
[Annotator "NA"]
[PlyCount "106"]
[EventDate "2019.07.16"]
[EventType "team-tourn"]
[EventCountry "TUR"]
[SourceTitle "playchess.com"]
[Source "ChessBase"]
[SourceQuality "1"]
[TimeControl "5400+30"]

1. e4 {[%emt 0:00:30]} c5 {[%emt 0:00:30]} 2. Nf3 {[%emt 0:00:30]} d6 {[%emt 0:00:30]} 3. Bb5+ {[%emt 0:00:30]} Nd7 {[%emt 0:00:30]} 4. d4 {[%emt 0:01:30]} cxd4 {[%emt 0:01:30]} 5. Qxd4 {[%emt 0:00:30]} a6 {[%emt 0:08:30]} 6. Bxd7+ {[%emt 0:03:30]} Bxd7 {[%emt 0:00:30]} 7. Bg5 {[%emt 0:00:00]} Bc6 {[%emt 0:10:30]} 8. Nc3 {[%emt 0:05:00]} e5 {[%emt 0:08:30]} 9. Qd3 {[%emt 0:05:30]} Be7 {[%emt 0:02:30]} 10. h4 {[%emt 0:15:30]} h6 {[%emt 0:08:30]} 11. Bxe7 {[%emt 0:09:30]} Qxe7 {[%emt 0:00:30]} 12. O-O-O {[%emt 0:07:30]} O-O-O {[%emt 0:07:30]} 13. Nd2 {[%emt 0:10:30]} b5 {[%emt 0:09:30]} 14. Nb3 {[%emt 0:03:30]} Qc7 {[%emt 0:09:30]} 15. Rh3 {[%emt 0:13:30]} Nf6 {[%emt 0:05:30]} 16. Nd5 {[%emt 0:07:16]} Nxd5 {[%emt 0:08:14]} 17. exd5 {[%emt 0:00:30]} Bd7 {[%emt 0:00:30]} 18. Rg3 {[%emt 0:00:30]} g6 {[%emt 0:00:30]} 19. Qd2 {[%emt 0:00:30]} Qb6 {[%emt 0:00:30]} 20. Na5 {[%emt 0:00:30]} Kb8 {[%emt 0:00:30]} 21. Qb4 {[%emt 0:07:39]} Rc8 {[%emt 0:12:38]} 22. Rdd3 {[%emt 0:02:32]} Qc5 {[%emt 0:01:14]} 23. Qd2 {[%emt 0:01:24]} b4 {[%emt 0:01:11]} 24. Rb3 {[%emt 0:01:22]} Qxa5 {[%emt 0:01:09]} 25. Rxb4+ {[%emt 0:00:02]} Bb5 {[%emt 0:00:06]} 26. Rxb5+ {[%emt 0:00:21]} Qxb5 {[%emt 0:00:30]} 27. Rb3 {[%emt 0:00:02]} Qxb3 {[%emt 0:00:44]} 28. axb3 {[%emt 0:00:08]} Rc5 {[%emt 0:00:27]} 29. f4 {[%emt 0:02:23]} Re8 {[%emt 0:01:03]} 30. fxe5 {[%emt 0:00:22]} Rxe5 {[%emt 0:00:19]} 31. Qxh6 {[%emt 0:00:50]} Rcxd5 {[%emt 0:00:30]} 32. Qf8+ {[%emt 0:00:16]} Kc7 {[%emt 0:00:21]} 33. Qxf7+ {[%emt 0:00:08]} Kc6 {[%emt 0:00:14]} 34. Qf1 {[%emt 0:00:40]} Ra5 {[%emt 0:00:54]} 35. Qc4+ {[%emt 0:00:44]} Kb6 {[%emt 0:00:42]} 36. c3 {[%emt 0:00:22]} Ra1+ {[%emt 0:00:33]} 37. Kc2 {[%emt 0:00:57]} Rae1 {[%emt 0:00:09]} 38. b4 {[%emt 0:00:00]} R1e2+ {[%emt 0:00:43]} 39. Kb3 {[%emt 0:00:25]} Rxg2 {[%emt 0:00:23]} 40. Qc8 {[%emt 0:00:41]} Ree2 {[%emt 0:00:34]} 41. Qd8+ {[%emt 0:00:54]} Kc6 {[%emt 0:00:20]} 42. Qa8+ {[%emt 0:01:25]} Kb6 {[%emt 0:00:07]} 43. Qb8+ {[%emt 0:00:05]} Kc6 {[%emt 0:00:10]} 44. Qa8+ {[%emt 0:00:37]} Kb6 {[%emt 0:00:06]} 45. Qd8+ {[%emt 0:00:45]} Kc6 {[%emt 0:00:08]} 46. Kc4 {[%emt 0:00:38]} Rxb2 {[%emt 0:01:41]} 47. Qc8+ {[%emt 0:00:13]} Kb6 {[%emt 0:00:04]} 48. Qb8+ {[%emt 0:01:07]} Kc6 {[%emt 0:00:07]} 49. Qa8+ {[%emt 0:00:07]} Kb6 {[%emt 0:00:12]} 50. Qd8+ {[%emt 0:00:55]} Kc6 {[%emt 0:00:08]} 51. Qe8+ {[%emt 0:00:00]} Kb6 {[%emt 0:00:53]} 52. Kd5 {[%emt 0:00:19]} Rgd2+ {[%emt 0:00:51]} 53. Kc4 {[%emt 0:00:07]} d5# {[%emt 0:00:00]} 0-1

[Event "Turkish Club Cup 2019"]
[Site "Konya"]
[Date "2019.07.17"]
[Round "2"]
[White "Demir, Ugur"]
[Black "Taskaya, Muhammed"]
[Result "1-0"]
[ECO "C00"]
[WhiteElo "1763"]
[BlackElo "2011"]
[Annotator "NA"]
[PlyCount "92"]
[EventDate "2019.07.16"]
[EventType "team-tourn"]
[EventCountry "TUR"]
[SourceTitle "playchess.com"]
[Source "ChessBase"]
[SourceQuality "1"]
[TimeControl "5400+30"]

1. e4 {[%emt 0:01:30]} e6 {[%emt 0:00:30]} 2. Qe2 {[%emt 0:00:30]} c5 {[%emt 0:00:30]} 3. Nf3 {[%emt 0:01:30]} Nc6 {[%emt 0:00:30]} 4. g3 {[%emt 0:00:00]} Nf6 {[%emt 0:05:30]} 5. Bg2 {[%emt 0:01:00]} Be7 {[%emt 0:00:30]} 6. e5 {[%emt 0:02:30]} Nd5 {[%emt 0:00:30]} 7. c4 {[%emt 0:00:30]} Ndb4 {[%emt 0:02:30]} 8. d3 {[%emt 0:04:30]} d6 {[%emt 0:04:30]} 9. a3 {[%emt 0:02:30]} Na6 {[%emt 0:03:30]} 10. exd6 {[%emt 0:02:30]} Bxd6 {[%emt 0:04:30]} 11. Nc3 {[%emt 0:07:30]} Nc7 {[%emt 0:10:30]} 12. Ne4 {[%emt 0:10:30]} Be7 {[%emt 0:03:30]} 13. Be3 {[%emt 0:05:30]} b6 {[%emt 0:01:30]} (13... Na6 $14) 14. Rd1 {[%emt 0:10:30]} e5 {[%emt 0:06:30]} 15. Nxe5 {[%emt 0:09:30]} Nxe5 {[%emt 0:00:30]} 16. d4 {[%emt 0:00:30]} Nd7 $16 {[%emt 0:14:30]} 17. dxc5 {[%emt 0:02:30]} bxc5 {[%emt 0:02:30]} 18. Nxc5 {[%emt 0:07:30]} O-O {[%emt 0:04:30]} 19. Bxa8 {[%emt 0:06:30]} Nxa8 {[%emt 0:00:30]} 20. Nxd7 {[%emt 0:05:34]} Bxd7 {[%emt 0:02:30]} 21. Qd2 {[%emt 0:02:41]} Be6 {[%emt 0:13:15]} 22. Qxd8 {[%emt 0:02:00]} Bxd8 {[%emt 0:00:05]} 23. Bxa7 {[%emt 0:05:14]} Bxc4 {[%emt 0:00:18]} 24. Bd4 {[%emt 0:01:41]} Nb6 {[%emt 0:05:10]} 25. Kd2 {[%emt 0:01:27]} Nd5 {[%emt 0:09:47]} 26. b4 {[%emt 0:01:44]} Be7 {[%emt 0:00:41]} 27. Kc2 {[%emt 0:01:35]} Ra8 {[%emt 0:01:23]} 28. Kb2 {[%emt 0:01:35]} f5 {[%emt 0:01:25]} 29. Rc1 {[%emt 0:00:41]} Bd3 {[%emt 0:00:41]} 30. Rhd1 {[%emt 0:01:13]} Be4 {[%emt 0:00:09]} 31. Be5 {[%emt 0:00:49]} Kf7 {[%emt 0:01:22]} 32. Rd4 {[%emt 0:00:34]} g5 {[%emt 0:01:27]} 33. f4 {[%emt 0:00:17]} Ra6 {[%emt 0:00:13]} 34. Kb3 {[%emt 0:01:04]} Rh6 {[%emt 0:00:25]} 35. Re1 {[%emt 0:00:53]} Nf6 {[%emt 0:00:37]} 36. fxg5 {[%emt 0:00:26]} Ng4 {[%emt 0:00:25]} 37. gxh6 {[%emt 0:00:30]} Nxe5 {[%emt 0:00:00]} 38. Rexe4 {[%emt 0:00:30]} fxe4 {[%emt 0:00:30]} 39. Rxe4 {[%emt 0:00:00]} Ke6 {[%emt 0:00:00]} 40. a4 {[%emt 0:00:40]} Kd5 {[%emt 0:00:04]} 41. Re2 {[%emt 0:00:45]} Bg5 {[%emt 0:00:26]} 42. a5 {[%emt 0:00:21]} Nc6 {[%emt 0:01:48]} 43. Ka4 {[%emt 0:00:13]} Bxh6 {[%emt 0:00:12]} 44. b5 {[%emt 0:00:27]} Nd4 {[%emt 0:00:21]} 45. Re7 {[%emt 0:00:26]} Bd2 {[%emt 0:00:46]} 46. Rxh7 {[%emt 0:00:31]} Ke4 {[%emt 0:01:13]} 1-0

[Event "Turkish Club Cup 2019"]
[Site "Konya"]
[Date "2019.07.17"]
[Round "2"]
[White "Toren, Kadir"]
[Black "Ersahince, Umut Utku"]
[Result "0-1"]
[ECO "B70"]
[WhiteElo "1736"]
[BlackElo "1677"]
[Annotator "NA"]
[PlyCount "132"]
[EventDate "2019.07.16"]
[EventType "team-tourn"]
[EventCountry "TUR"]
[SourceTitle "playchess.com"]
[Source "ChessBase"]
[SourceQuality "1"]
[TimeControl "5400+30"]

1. e4 {[%emt 0:00:30]} c5 {[%emt 0:00:30]} 2. Nf3 {[%emt 0:10:30]} d6 {[%emt 0:00:00]} 3. d4 {[%emt 0:00:30]} cxd4 {[%emt 0:00:00]} 4. Nxd4 {[%emt 0:00:30]} Nf6 {[%emt 0:00:00]} 5. Nc3 {[%emt 0:00:00]} g6 {[%emt 0:00:00]} 6. Bc4 {[%emt 0:01:00]} Bg7 {[%emt 0:00:30]} 7. Bb3 {[%emt 0:00:30]} O-O {[%emt 0:00:00]} 8. O-O {[%emt 0:00:30]} Nc6 {[%emt 0:02:00]} 9. Nxc6 {[%emt 0:01:30]} bxc6 {[%emt 0:00:00]} 10. Kh1 {[%emt 0:02:30]} Ba6 {[%emt 0:21:00]} 11. Re1 {[%emt 0:00:30]} Qd7 {[%emt 0:14:30]} 12. h3 {[%emt 0:05:30]} Bb7 {[%emt 0:08:30]} 13. Bg5 {[%emt 0:04:30]} e5 {[%emt 0:13:30]} 14. f4 {[%emt 0:17:30]} Nh5 {[%emt 0:08:30]} 15. f5 {[%emt 0:02:30]} Bf6 {[%emt 0:14:10]} 16. Bh6 {[%emt 0:12:30]} Ng7 {[%emt 0:02:56]} 17. Qg4 {[%emt 0:04:30]} Kh8 {[%emt 0:02:00]} 18. Rf1 {[%emt 0:04:30]} gxf5 {[%emt 0:02:06]} 19. Bxg7+ {[%emt 0:04:30]} Bxg7 {[%emt 0:00:07]} 20. exf5 {[%emt 0:02:30]} d5 {[%emt 0:01:50]} 21. Rad1 {[%emt 0:03:30]} Qe7 {[%emt 0:00:32]} 22. Ne2 {[%emt 0:02:07]} Ba6 {[%emt 0:00:25]} 23. c4 {[%emt 0:01:01]} d4 {[%emt 0:00:30]} 24. f6 {[%emt 0:00:30]} Bxf6 {[%emt 0:00:30]} 25. Qf5 {[%emt 0:00:30]} Bg5 {[%emt 0:00:30]} 26. Bc2 {[%emt 0:00:30]} f6 {[%emt 0:00:30]} 27. b3 {[%emt 0:00:30]} Bc8 {[%emt 0:00:37]} 28. Qe4 {[%emt 0:10:40]} f5 {[%emt 0:03:51]} 29. Qxc6 {[%emt 0:00:38]} Bb7 {[%emt 0:00:26]} 30. Qb5 {[%emt 0:00:38]} Rab8 {[%emt 0:00:30]} 31. Qa5 {[%emt 0:00:18]} Qg7 {[%emt 0:00:15]} 32. Rg1 {[%emt 0:04:30]} Be3 {[%emt 0:00:53]} 33. Kh2 {[%emt 0:00:38]} Rg8 {[%emt 0:01:19]} 34. Qxa7 {[%emt 0:01:34]} Bxg1+ {[%emt 0:02:26]} 35. Rxg1 {[%emt 0:00:47]} Qc7 {[%emt 0:01:28]} 36. b4 {[%emt 0:02:05]} e4+ {[%emt 0:00:23]} 37. Kh1 {[%emt 0:00:24]} d3 {[%emt 0:00:22]} 38. Nd4 {[%emt 0:00:32]} Ra8 {[%emt 0:00:41]} 39. Qc5 {[%emt 0:00:48]} Qxc5 {[%emt 0:00:06]} 40. bxc5 {[%emt 0:00:07]} dxc2 {[%emt 0:00:06]} 41. c6 {[%emt 0:00:00]} Bc8 {[%emt 0:00:14]} 42. Nxc2 {[%emt 0:00:19]} Rxa2 {[%emt 0:00:05]} 43. Rc1 {[%emt 0:00:10]} Re8 {[%emt 0:01:05]} 44. Nb4 {[%emt 0:00:15]} Rd2 {[%emt 0:00:36]} 45. Kh2 {[%emt 0:01:40]} e3 {[%emt 0:00:13]} 46. Kg3 {[%emt 0:00:22]} e2 {[%emt 0:01:12]} 47. Re1 {[%emt 0:00:06]} Rd1 {[%emt 0:00:50]} 48. Kf2 {[%emt 0:00:41]} Rxe1 {[%emt 0:00:42]} 49. Kxe1 {[%emt 0:00:00]} Kg7 {[%emt 0:00:14]} 50. Nd5 {[%emt 0:00:00]} Be6 {[%emt 0:00:36]} 51. Nb6 {[%emt 0:00:55]} Kf6 {[%emt 0:00:34]} 52. c5 {[%emt 0:00:26]} Bc8 {[%emt 0:00:37]} 53. Nd7+ {[%emt 0:01:25]} Bxd7 {[%emt 0:00:45]} 54. cxd7 {[%emt 0:00:02]} Rf8 {[%emt 0:00:00]} 55. c6 {[%emt 0:00:58]} Ke6 {[%emt 0:00:01]} 56. Kxe2 {[%emt 0:00:45]} Kd6 {[%emt 0:00:04]} 57. Kf3 {[%emt 0:00:09]} Kxc6 58. d8=Q Rxd8 59. Kf4 {[%emt 0:00:00]} Rf8 {[%emt 0:00:20]} 60. Ke5 {[%emt 0:00:24]} Kd7 {[%emt 0:00:36]} 61. h4 {[%emt 0:00:09]} Ke7 {[%emt 0:00:00]} 62. g3 {[%emt 0:00:07]} Rf6 {[%emt 0:00:00]} 63. h5 {[%emt 0:00:10]} Rh6 {[%emt 0:00:00]} 64. Kxf5 {[%emt 0:00:06]} Rxh5+ {[%emt 0:00:00]} 65. Kf4 {[%emt 0:00:13]} Kf6 {[%emt 0:00:32]} 66. g4 {[%emt 0:00:30]} Ra5 {[%emt 0:00:09]} 0-1

[Event "Turkish Club Cup 2019"]
[Site "Konya"]
[Date "2019.07.17"]
[Round "2"]
[White "Sariali, Furkan Anil"]
[Black "Gulden, Egemen"]
[Result "0-1"]
[ECO "A26"]
[WhiteElo "1733"]
[BlackElo "2135"]
[Annotator "ChessBase"]
[PlyCount "78"]
[EventDate "2019.07.16"]
[EventType "team-tourn"]
[EventCountry "TUR"]
[SourceTitle "playchess.com"]
[Source "ChessBase"]
[SourceQuality "1"]
[TimeControl "5400+30"]

1. Nf3 {[%emt 0:00:30]} g6 {[%emt 0:01:30]} 2. g3 {[%emt 0:00:30]} Bg7 {[%emt 0:00:30]} 3. Bg2 {[%emt 0:00:00]} e5 {[%emt 0:00:00]} 4. d3 {[%emt 0:01:00]} Nc6 {[%emt 0:02:00]} 5. O-O {[%emt 0:00:30]} Nge7 {[%emt 0:01:30]} 6. c4 {[%emt 0:05:30]} d6 {[%emt 0:01:30]} 7. Nc3 {[%emt 0:00:30]} h6 {[%emt 0:00:30]} 8. Rb1 {[%emt 0:01:30]} f5 {[%emt 0:03:30]} 9. b4 {[%emt 0:05:30]} e4 {[%emt 0:01:30]} 10. Nxe4 {[%emt 0:22:30]} fxe4 {[%emt 0:03:30]} 11. dxe4 {[%emt 0:00:30]} O-O {[%emt 0:00:00]} 12. b5 {[%emt 0:10:30]} Ne5 {[%emt 0:01:00]} 13. Nxe5 {[%emt 0:01:30]} dxe5 {[%emt 0:00:30]} 14. Ba3 {[%emt 0:04:30]} Qe8 {[%emt 0:01:30]} 15. f4 {[%emt 0:02:30]} Be6 {[%emt 0:07:30]} 16. Qc2 {[%emt 0:03:30]} Rf7 {[%emt 0:02:30]} 17. f5 {[%emt 0:04:30]} gxf5 {[%emt 0:21:30]} 18. Bxe7 {[%emt 0:00:30]} Qxe7 {[%emt 0:01:30]} 19. exf5 {[%emt 0:00:00]} Qc5+ {[%emt 0:00:30]} 20. Kh1 {[%emt 0:01:00]} Qxc4 {[%emt 0:00:30]} 21. Qd2 {[%emt 0:04:30]} Rd7 {[%emt 0:03:30]} 22. Qe3 {[%emt 0:02:30]} Bd5 {[%emt 0:00:30]} 23. f6 {[%emt 0:02:30]} Bxg2+ {[%emt 0:01:30]} 24. Kxg2 {[%emt 0:00:30]} Qd5+ {[%emt 0:00:30]} 25. Kg1 {[%emt 0:02:30]} Bf8 {[%emt 0:00:00]} 26. Qf2 {[%emt 0:01:30]} Bc5 {[%emt 0:03:00]} 27. e3 {[%emt 0:00:30]} Rf8 {[%emt 0:06:30]} 28. Rbd1 {[%emt 0:03:40]} Qe4 {[%emt 0:00:30]} 29. Rde1 {[%emt 0:06:29]} Rdf7 {[%emt 0:01:30]} 30. Qd2 {[%emt 0:02:18]} Rxf6 {[%emt 0:00:30]} 31. Rxf6 {[%emt 0:02:16]} Rxf6 {[%emt 0:00:30]} 32. Qc1 {[%emt 0:00:30]} Bb6 {[%emt 0:00:30]} 33. Qd2 {[%emt 0:00:30]} c6 {[%emt 0:00:30]} 34. bxc6 {[%emt 0:00:30]} Rxc6 {[%emt 0:00:30]} 35. Re2 {[%emt 0:00:30]} Rf6 {[%emt 0:00:30]} 36. Qc1 {[%emt 0:00:30]} Qc6 {[%emt 0:00:30]} 37. Qd1 {[%emt 0:00:30]} Qf3 {[%emt 0:00:30]} 38. Qe1 {[%emt 0:00:30]} e4 {[%emt 0:00:30]} 39. a4 {[%emt 0:04:44]} h5 {[%emt 0:06:30]} 0-1